bitfinex-derivatives/quotes_BTCF0:USTF0_20250101
["timestamp","ask_amount","ask_price","bid_price","bid_amount"]
[1735741555905,0.01866645,94176.0,94172.0,0.413997]
[1735741556207,0.09796527,94178.0,94172.0,0.413997]
[1735741556208,0.053196,94174.0,94172.0,0.413997]
[1735741556402,0.07186345,94173.0,94172.0,0.413997]
[1735741556604,0.07186345,94173.0,94172.0,0.3608]
[1735741556800,0.11663172,94173.0,94167.0,0.3608]
[1735741557111,0.0532,94168.0,94167.0,0.3608]
[1735741557306,0.07186645,94168.0,94167.0,0.3608]
[1735741557607,0.053204,94161.0,94159.0,0.053205]
[1735741557797,0.01866645,94160.0,94159.0,0.053205]
[1735741557997,0.01866645,94160.0,94158.0,0.3608]
[1735741558197,0.05810791,94159.0,94134.0,0.3608]
[1735741558408,0.46924814,94150.0,94135.0,0.053218]
[1735741558703,0.46924814,94150.0,94135.0,0.0414]
[1735741558911,0.46924814,94150.0,94145.0,0.053213]
[1735741559112,0.053211,94148.0,94145.0,0.053213]
[1735741559505,0.01843384,94147.0,94145.0,0.053213]
[1735741559901,0.01843384,94147.0,94135.0,0.0414]
[1735741560105,0.01843384,94146.0,94140.0,0.053215]
[1735741560307,0.053216,94139.0,94134.0,0.3608]
[1735741560509,0.01852252,94138.0,94137.0,0.053217]
[1735741560709,0.053216,94139.0,94137.0,0.053217]
[1735741560909,0.0386,94149.0,94134.0,0.3608]
[1735741561111,0.053213,94145.0,94139.0,0.053216]
[1735741561309,0.01852263,94144.0,94139.0,0.053216]
[1735741561513,0.48600309,94150.0,94134.0,0.3608]
[1735741561714,0.001,94138.0,94137.0,0.053217]
[1735741562210,0.001,94138.0,94134.0,0.3608]
[1735741562510,0.001,94138.0,94136.0,0.053217]
[1735741562904,0.002,94138.0,94136.0,0.053217]
[1735741563104,0.054217,94138.0,94136.0,0.053217]
[1735741564018,0.055217,94138.0,94136.0,0.053217]
[1735741564510,0.002,94138.0,94136.0,0.053217]
[1735741564707,0.001,94138.0,94136.0,0.053217]
[1735741564920,0.002,94138.0,94136.0,0.053217]
[1735741565417,0.002,94138.0,94134.0,0.3608]
[1735741565716,0.055217,94138.0,94134.0,0.3608]
[1735741566212,0.053218,94136.0,94134.0,0.3608]
[1735741566814,0.05322,94133.0,94132.0,0.3608]
[1735741567911,0.001,94136.0,94133.0,0.053219]
[1735741568103,0.001,94136.0,94134.0,0.053219]
[1735741568307,0.002,94136.0,94134.0,0.053219]
[1735741568806,0.001,94136.0,94134.0,0.053219]
[1735741569215,0.01549669,94138.0,94134.0,0.053219]
[1735741569415,0.001,94136.0,94134.0,0.053219]
[1735741569610,0.001,94136.0,94132.0,0.3608]
[1735741569816,0.053219,94133.0,94132.0,0.3608]
[1735741570712,0.053221,94130.0,94128.0,0.053222]
[1735741571218,0.001,94133.0,94122.0,0.3608]
[1735741571408,0.053225,94123.0,94122.0,0.3608]
[1735741573113,0.053225,94123.0,94113.0,0.41403]
[1735741573311,0.053235,94105.0,94104.0,0.053236]
[1735741574823,0.3608,94111.0,94093.0,0.3608]
[1735741575012,0.053237,94103.0,94102.0,0.053236]
[1735741575206,0.3608,94111.0,94107.0,0.053234]
[1735741575412,0.053234,94108.0,94107.0,0.053234]
[1735741575612,0.053238,94102.0,94093.0,0.3608]
[1735741577021,0.053238,94102.0,94101.0,0.053238]
[1735741578212,0.053238,94101.0,94093.0,0.3608]
[1735741578416,0.053238,94101.0,94100.0,0.153238]
[1735741579617,0.057238,94101.0,94100.0,0.153238]
[1735741580030,0.060238,94101.0,94100.0,0.153238]
[1735741581423,0.07932087,94101.0,94100.0,0.153238]
[1735741581627,0.07932087,94101.0,94100.0,0.1]
[1735741583122,0.07932087,94101.0,94093.0,0.3608]
[1735741583123,0.053245,94088.0,94086.0,0.053246]
[1735741583424,0.053245,94088.0,94087.0,0.053245]
[1735741584123,0.3608,94093.0,94081.0,0.00159445]
[1735741584320,0.053248,94082.0,94081.0,0.00159445]
[1735741584820,0.053245,94088.0,94086.0,0.053246]
[1735741585020,0.053245,94088.0,94087.0,0.053245]
[1735741586124,0.054245,94088.0,94087.0,0.053245]
[1735741586325,0.053248,94083.0,94082.0,0.053247]
[1735741586921,0.053248,94082.0,94081.0,0.05484345]
[1735741587318,0.26427144,94088.0,94087.0,0.053245]
[1735741587622,0.07391778,94088.0,94087.0,0.053245]
[1735741588023,0.053248,94082.0,94081.0,0.00159445]
[1735741589024,0.053248,94082.0,94081.0,0.05484345]
[1735741589819,0.054248,94082.0,94081.0,0.05484345]
[1735741590726,0.054248,94082.0,94081.0,0.053249]
[1735741590923,0.053253,94076.0,94075.0,0.053252]
[1735741592222,0.053259,94065.0,94064.0,0.053258]
[1735741592424,0.053263,94059.0,94058.0,0.053262]
[1735741592625,0.3608,94065.0,94052.0,0.3608]
[1735741592626,0.414058,94065.0,94063.0,0.053259]
[1735741592928,0.053258,94064.0,94063.0,0.053259]
[1735741594116,0.37963075,94065.0,94036.0,0.053274]
[1735741594322,0.37963075,94065.0,94037.0,0.0394]
[1735741594323,0.16171414,94050.0,94037.0,0.0394]
[1735741594522,0.053266,94050.0,94049.0,0.053267]
[1735741594719,0.3608,94057.0,94056.0,0.053263]
[1735741594922,0.001,94065.0,94056.0,0.414063]
[1735741595225,0.00159524,94069.0,94057.0,0.1166]
[1735741595423,0.00159524,94069.0,94068.0,0.053256]
[1735741596025,0.02225702,94069.0,94068.0,0.053256]
[1735741596726,0.00159524,94069.0,94068.0,0.053256]
[1735741596920,0.00259524,94069.0,94068.0,0.053256]
[1735741597521,0.001,94069.0,94068.0,0.053256]
[1735741598121,0.002,94069.0,94068.0,0.053256]
[1735741598326,0.001,94069.0,94068.0,0.053256]
[1735741598529,0.15863863,94073.0,94072.0,0.053254]
[1735741598931,0.09733863,94073.0,94072.0,0.053254]
[1735741599136,0.19042154,94078.0,94077.0,0.053251]
[1735741599432,0.0206503,94078.0,94077.0,0.053251]
[1735741600325,0.15879896,94082.0,94081.0,0.053249]
[1735741600531,0.3608,94083.0,94081.0,0.053249]
[1735741601132,0.0206092,94082.0,94081.0,0.053249]
[1735741602431,0.0206092,94082.0,94081.0,0.057249]
[1735741604338,0.0216092,94082.0,94081.0,0.053249]
[1735741604527,0.0216092,94082.0,94081.0,0.057249]
[1735741605038,0.0216092,94082.0,94081.0,0.054249]
[1735741605827,0.0216092,94082.0,94081.0,0.001]
[1735741606031,0.0216092,94082.0,94081.0,0.054249]
[1735741606237,0.11148825,94082.0,94081.0,0.054249]
[1735741609038,0.21592544,94082.0,94081.0,0.054249]
[1735741620547,0.26602897,94091.0,94090.0,0.053244]
[1735741620745,0.14462897,94091.0,94090.0,0.414044]
[1735741620949,0.31876902,94092.0,94091.0,0.053243]
[1735741621350,0.3404329,94092.0,94091.0,0.053243]
[1735741621542,2e-08,94092.0,94091.0,0.353243]
[1735741621939,0.0386,94118.0,94091.0,0.3]
[1735741622244,0.0386,94118.0,94117.0,0.053228]
[1735741622446,0.06025148,94118.0,94117.0,0.053228]
[1735741623740,0.06125148,94118.0,94117.0,0.053228]
[1735741624450,0.06625148,94118.0,94109.0,0.3608]
[1735741624651,0.3608,94114.0,94100.0,0.10844814]
[1735741624854,0.06225148,94113.0,94112.0,0.053231]
[1735741626342,0.06425148,94113.0,94112.0,0.053231]
[1735741626751,0.053234,94108.0,94098.0,0.00159413]
[1735741626953,0.02159656,94107.0,94098.0,0.00159413]
[1735741627146,0.053235,94105.0,94098.0,0.00159413]
[1735741627452,0.02159656,94104.0,94103.0,0.053236]
[1735741627639,0.02159656,94105.0,94098.0,0.36239413]
[1735741627845,0.02159728,94104.0,94103.0,0.053236]
[1735741628047,0.0398,94106.0,94104.0,0.053236]
[1735741628250,0.021604,94105.0,94104.0,0.053236]
[1735741628945,0.021604,94105.0,94098.0,0.00459413]
[1735741628946,0.053238,94100.0,94098.0,0.00459413]
[1735741629141,0.021604,94099.0,94098.0,0.00459413]
[1735741629748,0.021604,94099.0,94098.0,0.00559413]
[1735741630053,0.074843,94099.0,94098.0,0.00559413]
[1735741630254,0.053239,94098.0,94084.0,0.053247]
[1735741630451,0.021604,94097.0,94092.0,0.053242]
[1735741630650,0.053241,94096.0,94093.0,0.053242]
[1735741630856,0.382404,94095.0,94093.0,0.053242]
[1735741631151,0.021604,94094.0,94093.0,0.053242]
[1735741632046,0.11966973,94094.0,94093.0,0.053242]
[1735741632651,0.11966973,94094.0,94093.0,0.414042]
[1735741633051,0.021604,94094.0,94093.0,0.414042]
[1735741633257,0.001,94094.0,94093.0,0.414042]
[1735741633651,0.002,94094.0,94093.0,0.414042]
[1735741634548,0.001,94094.0,94093.0,0.414042]
[1735741635243,0.0795,94109.0,94093.0,0.414042]
[1735741635457,0.001,94094.0,94093.0,0.414042]
[1735741636053,0.0795,94109.0,94093.0,0.414042]
[1735741636249,0.02087774,94105.0,94094.0,0.053241]
[1735741636450,0.02087774,94105.0,94104.0,0.053236]
[1735741637649,0.38167774,94105.0,94104.0,0.053236]
[1735741637848,0.38167774,94105.0,94083.0,0.0173217]
[1735741638053,0.02087774,94104.0,94096.0,0.05324]
[1735741638459,0.3608,94097.0,94096.0,0.05324]
[1735741638660,0.38167774,94097.0,94096.0,0.05324]
[1735741640764,0.38367774,94097.0,94096.0,0.05324]
[1735741641163,0.38567774,94097.0,94096.0,0.05324]
[1735741642063,0.48374284,94097.0,94096.0,0.05324]
[1735741645366,0.12294284,94097.0,94096.0,0.05324]
[1735741645572,0.48374284,94097.0,94096.0,0.05324]
[1735741647577,0.12294284,94097.0,94096.0,0.05324]
[1735741647771,0.48374284,94097.0,94096.0,0.05324]
[1735741651082,0.38567774,94097.0,94096.0,0.05324]
[1735741655586,0.48374102,94097.0,94096.0,0.05324]
[1735741655785,0.48174102,94097.0,94096.0,0.05324]
[1735741656080,0.48374102,94097.0,94096.0,0.05324]
[1735741661990,0.46286328,94097.0,94096.0,0.05324]
[1735741663694,0.3648,94097.0,94096.0,0.05324]
[1735741665679,0.44993636,94097.0,94096.0,0.05324]
[1735741665883,0.47025476,94097.0,94096.0,0.05324]
[1735741666794,0.56831845,94097.0,94096.0,0.05324]
[1735741669187,0.68325864,94097.0,94096.0,0.05324]
[1735741669890,0.68325864,94097.0,94087.0,0.01581846]
[1735741670089,0.68325864,94097.0,94095.0,0.053241]
[1735741670090,0.0203184,94096.0,94095.0,0.053241]
[1735741671089,0.31845864,94096.0,94095.0,0.053241]
[1735741672293,0.32045864,94096.0,94095.0,0.053241]
[1735741672994,0.32245864,94096.0,94095.0,0.053241]
[1735741673591,0.32045864,94096.0,94095.0,0.053241]
[1735741673789,0.32145864,94096.0,94095.0,0.053241]
[1735741676098,0.20651845,94096.0,94095.0,0.053241]
[1735741677098,0.0233184,94096.0,94095.0,0.053241]
[1735741677495,0.0233184,94096.0,94095.0,0.06856229]
[1735741678398,0.10845476,94096.0,94095.0,0.06856229]
[1735741680597,0.08813636,94096.0,94095.0,0.06856229]
[1735741682697,0.08813636,94096.0,94095.0,0.053241]
[1735741683197,0.08813636,94096.0,94083.0,0.3608]
[1735741683397,0.053242,94094.0,94089.0,0.053244]
[1735741683906,0.053242,94094.0,94083.0,0.3608]
[1735741684105,0.053242,94094.0,94091.0,0.053243]
[1735741684292,0.08813636,94096.0,94083.0,0.3608]
[1735741684497,0.08513636,94093.0,94083.0,0.3608]
[1735741684698,0.0795,94092.0,94091.0,0.053243]
[1735741685400,0.16463636,94092.0,94091.0,0.053243]
[1735741685798,0.16563636,94092.0,94091.0,0.053243]
[1735741686707,0.08613636,94092.0,94091.0,0.414043]
[1735741687209,0.08613636,94092.0,94091.0,0.42925172]
[1735741687707,0.001,94092.0,94091.0,0.42925172]
[1735741687908,0.001,94092.0,94091.0,1.92925172]
[1735741688913,0.28739603,94101.0,94100.0,0.053238]
[1735741689105,0.17059603,94101.0,94100.0,0.414038]
[1735741689306,0.05924552,94101.0,94100.0,0.714038]
[1735741690203,0.06124552,94101.0,94100.0,1.190878]
[1735741690406,0.002,94101.0,94100.0,1.190878]
[1735741691711,0.006,94101.0,94100.0,1.190878]
[1735741692015,0.006,94101.0,94100.0,0.890878]
[1735741694113,0.006,94101.0,94100.0,0.3608]
[1735741694305,0.02617749,94101.0,94093.0,0.053242]
[1735741694502,0.02617749,94101.0,94091.0,0.3608]
[1735741694503,0.02017749,94100.0,94091.0,0.3608]
[1735741695710,0.3608,94095.0,94087.0,0.053245]
[1735741696815,0.01999526,94094.0,94082.0,0.3608]
[1735741698109,0.01999526,94094.0,94087.0,0.003]
[1735741698511,0.09806649,94093.0,94087.0,0.001]
[1735741698706,0.01999526,94092.0,94083.0,0.053248]
[1735741699211,0.01999526,94092.0,94087.0,0.002]
[1735741699818,0.01999526,94091.0,94086.0,0.053246]
[1735741700119,0.06129526,94090.0,94086.0,0.053246]
[1735741700415,0.01996649,94089.0,94086.0,0.053246]
[1735741700810,0.0375,94088.0,94086.0,0.053246]
[1735741701017,0.0375,94088.0,94087.0,0.001]
[1735741701319,0.0575302,94088.0,94087.0,0.003]
[1735741701706,0.0575302,94088.0,94087.0,0.002]
[1735741701907,0.0575302,94088.0,94086.0,0.057246]
[1735741702103,0.0375,94088.0,94086.0,0.057246]
[1735741702413,0.0375,94088.0,94086.0,0.056246]
[1735741702717,0.25096665,94095.0,94087.0,0.001]
[1735741702918,0.01999215,94094.0,94087.0,0.001]
[1735741703209,0.01999215,94094.0,94087.0,0.003]
[1735741704119,0.0980664,94093.0,94087.0,0.003]
[1735741704416,0.01999215,94092.0,94087.0,0.003]
[1735741705004,0.0980664,94091.0,94087.0,0.002]
[1735741705210,0.01999215,94090.0,94088.0,0.053245]
[1735741706018,0.05809215,94090.0,94088.0,0.053245]
[1735741706219,0.01999215,94089.0,94088.0,0.053245]
[1735741707514,0.01999215,94089.0,94088.0,0.055245]
[1735741708415,0.05999215,94089.0,94088.0,0.002]
[1735741712009,0.04,94089.0,94088.0,0.002]
[1735741716528,0.04,94089.0,94088.0,0.055245]
[1735741718633,0.04,94089.0,94088.0,0.054245]
[1735741719026,0.06000404,94089.0,94088.0,0.001]
[1735741719932,0.11324804,94089.0,94088.0,0.001]
[1735741721327,0.053248,94082.0,94081.0,0.3608]
[1735741721526,0.07325204,94082.0,94081.0,0.3608]
[1735741722332,0.02000404,94082.0,94081.0,0.415049]
[1735741722524,0.09807227,94082.0,94081.0,0.420049]
[1735741723737,0.31940644,94084.0,94081.0,0.420049]
[1735741724329,0.31940644,94084.0,94082.0,0.053248]
[1735741724531,0.08455575,94083.0,94082.0,0.053248]
[1735741725738,0.08455575,94083.0,94082.0,0.057248]
[1735741726730,0.08455575,94083.0,94082.0,0.179848]
[1735741728540,0.08455575,94083.0,94082.0,0.180848]
[1735741728932,0.08455575,94083.0,94082.0,0.140748]
[1735741729141,0.08455575,94083.0,94082.0,0.058248]
[1735741729440,0.4655339,94083.0,94070.0,0.10844814]
[1735741729643,0.3608,94071.0,94070.0,0.10844814]
[1735741729834,0.38097815,94071.0,94070.0,0.053255]
[1735741730240,0.3608,94071.0,94070.0,0.053255]
[1735741730938,0.3820758,94071.0,94070.0,0.062255]
[1735741731832,0.56589116,94071.0,94070.0,0.009]
[1735741732039,0.61910535,94071.0,94070.0,0.009]
[1735741732640,0.053259,94064.0,94055.0,0.053264]
[1735741732846,0.3608,94056.0,94055.0,0.053264]
[1735741733654,0.44535575,94056.0,94055.0,0.053264]
[1735741734965,0.46697076,94056.0,94055.0,0.053264]
[1735741735140,0.46797076,94056.0,94055.0,0.053264]
[1735741735749,0.46897076,94056.0,94055.0,0.053264]
[1735741736453,0.44735575,94056.0,94055.0,0.053264]
[1735741736857,0.46896234,94056.0,94055.0,0.053264]
[1735741737552,0.44735575,94056.0,94055.0,0.053264]
[1735741739351,0.468867,94056.0,94055.0,0.053264]
[1735741740753,0.46885946,94056.0,94055.0,0.053264]
[1735741741862,0.44735575,94056.0,94055.0,0.053264]
[1735741742560,0.46878148,94056.0,94055.0,0.053264]
[1735741743563,0.3628,94056.0,94055.0,0.053264]
[1735741745654,0.3628,94056.0,94051.0,0.053266]
[1735741745852,0.3608,94053.0,94051.0,0.053266]
[1735741746051,0.021403,94052.0,94051.0,0.053266]
[1735741746960,0.021403,94052.0,94040.0,0.10844814]
[1735741746961,0.074668,94052.0,94045.0,0.053269]
[1735741747163,0.3608,94047.0,94046.0,0.053269]
[1735741748364,0.3618,94047.0,94046.0,0.053269]
[1735741749364,0.3628,94047.0,94046.0,0.053269]
[1735741754060,0.7236,94047.0,94046.0,0.053269]
[1735741754659,0.74484242,94047.0,94046.0,0.053269]
[1735741755965,0.74484242,94047.0,94036.0,0.0015947]
[1735741755966,0.83157595,94047.0,94036.0,0.0015947]
[1735741756163,0.3608,94037.0,94036.0,0.0548687]
[1735741757069,0.3608,94037.0,94036.0,0.0015947]
[1735741757271,0.3821084,94037.0,94036.0,0.0015947]
[1735741757461,0.3831084,94037.0,94036.0,0.0015947]
[1735741758260,0.3831084,94037.0,93949.0,0.01596]
[1735741758261,0.38303689,94037.0,94022.0,0.053282]
[1735741758467,0.3608,94023.0,94013.0,0.01293251]
[1735741758674,0.3608,94014.0,94013.0,0.053287]
[1735741758862,0.38203689,94014.0,94013.0,0.053287]
[1735741759470,0.3608,94014.0,94013.0,0.053287]
[1735741759667,0.38184853,94014.0,94013.0,0.053287]
[1735741759971,0.46861462,94014.0,94013.0,0.053287]
[1735741760157,0.46861462,94014.0,94003.0,0.00159552]
[1735741760365,0.44856609,94014.0,94013.0,0.053287]
[1735741760670,0.8319158,94014.0,94013.0,0.053287]
[1735741761572,0.81036609,94014.0,94013.0,0.053287]
[1735741762066,0.83235282,94014.0,94013.0,0.053287]
[1735741762368,0.7236,94014.0,94013.0,0.053287]
[1735741762665,0.74560311,94014.0,94013.0,0.053287]
[1735741762861,0.74460311,94014.0,94013.0,0.053287]
[1735741763665,0.7226,94014.0,94013.0,0.053287]
[1735741766666,0.7246,94014.0,94013.0,0.053287]
[1735741769873,0.7226,94014.0,94013.0,0.053287]
[1735741770075,0.7246,94014.0,94013.0,0.053287]
[1735741773475,0.003,94014.0,94013.0,0.053287]
[1735741773673,0.7226,94014.0,94013.0,0.053287]
[1735741773882,0.7246,94014.0,94013.0,0.053287]
[1735741774372,0.7256,94014.0,94013.0,0.053287]
[1735741774768,0.004,94014.0,94013.0,0.053287]
[1735741774974,0.7246,94014.0,94013.0,0.053287]
[1735741775479,0.7256,94014.0,94013.0,0.053287]
[1735741776981,0.7226,94014.0,94013.0,0.053287]
[1735741777173,0.7256,94014.0,94013.0,0.053287]
[1735741780775,0.7226,94014.0,94013.0,0.053287]
[1735741780975,0.7256,94014.0,94013.0,0.053287]
[1735741783383,0.74446678,94014.0,94013.0,0.053287]
[1735741783585,0.74646678,94014.0,94013.0,0.06618173]
[1735741784077,0.7246,94014.0,94013.0,0.06618173]
[1735741784273,0.74648338,94014.0,94013.0,0.053287]
[1735741784475,0.053294,94001.0,94000.0,0.1]
[1735741784681,0.38268614,94001.0,93994.0,0.00159566]
[1735741784887,0.414098,93995.0,93994.0,0.00159566]
[1735741785077,0.43598414,93995.0,93994.0,0.00159566]
[1735741785879,0.38268614,93995.0,93994.0,0.00159566]
[1735741786388,0.43598414,93995.0,93994.0,0.00159566]
[1735741786791,0.43698414,93995.0,93994.0,0.00159566]
[1735741787178,0.38368614,93995.0,93960.0,0.3608]
[1735741787383,0.3608,93964.0,93963.0,0.20100331]
[1735741787575,0.3608,93964.0,93963.0,0.2415317]
[1735741787780,0.3608,93964.0,93963.0,0.053316]
[1735741788191,0.36072748,93964.0,93963.0,0.053316]
[1735741789082,0.36072748,93964.0,93959.0,0.01303025]
[1735741789385,0.053321,93954.0,93945.0,0.053326]
[1735741789590,0.3608,93946.0,93945.0,0.053326]
[1735741790779,0.3618,93946.0,93945.0,0.053326]
[1735741791179,0.3628,93946.0,93945.0,0.053326]
[1735741791381,0.002,93946.0,93945.0,0.096426]
[1735741791581,0.002,93946.0,93945.0,0.053326]
[1735741792979,0.002,93946.0,93945.0,1.553326]
[1735741794584,0.3608,93952.0,93951.0,0.053323]
[1735741795985,0.3618,93952.0,93951.0,0.054323]
[1735741797078,0.3618,93952.0,93951.0,0.001]
[1735741797887,0.415122,93952.0,93938.0,0.05333]
[1735741798084,0.3608,93939.0,93938.0,0.05333]
[1735741799315,0.3618,93939.0,93938.0,0.05333]
[1735741799502,0.0439,93951.0,93938.0,0.05333]
[1735741799706,0.88487541,94088.0,93943.0,0.3608]
[1735741799707,0.3608,93982.0,93943.0,0.3608]
[1735741800017,0.053301,93989.0,93975.0,0.053309]
[1735741800214,0.3608,93997.0,93974.0,0.3608]
[1735741800215,0.053305,93983.0,93974.0,0.3608]
[1735741801124,0.3608,93988.0,93974.0,0.3608]
[1735741801304,0.3608,93988.0,93974.0,0.414109]
[1735741801492,0.3608,93988.0,93974.0,0.3608]
[1735741801707,0.3608,93988.0,93978.0,0.053307]
[1735741802303,0.3608,93988.0,93979.0,0.053306]
[1735741802503,0.3608,93988.0,93980.0,0.053306]
[1735741802700,0.002,93983.0,93980.0,0.053306]
[1735741803089,0.006,93983.0,93980.0,0.053306]
[1735741803588,0.3608,93988.0,93980.0,0.053306]
[1735741803589,0.3678,93988.0,93980.0,0.053306]
[1735741803797,0.3708,93988.0,93980.0,0.053306]
[1735741804190,0.3638,93988.0,93980.0,0.053306]
[1735741804388,0.007,93983.0,93980.0,0.053306]
[1735741804593,0.01,93983.0,93980.0,0.053306]
[1735741804792,0.141005,93982.0,93974.0,0.3608]
[1735741805100,0.053306,93981.0,93972.0,0.3608]
[1735741805295,0.053306,93980.0,93972.0,0.3608]
[1735741805494,0.053306,93980.0,93970.0,0.053312]
[1735741805682,0.053308,93977.0,93971.0,0.3608]
[1735741805885,0.05331,93974.0,93964.0,0.053315]
[1735741806191,0.02123098,93976.0,93953.0,0.3608]
[1735741806192,0.053312,93970.0,93953.0,0.3608]
[1735741806385,0.3608,93976.0,93962.0,0.3608]
[1735741806591,0.3608,93976.0,93967.0,0.053313]
[1735741807191,0.414109,93976.0,93967.0,0.053313]
[1735741807393,0.053309,93976.0,93962.0,0.3608]
[1735741807896,0.054309,93976.0,93962.0,0.3608]
[1735741808296,0.05331,93974.0,93962.0,0.3608]
[1735741808492,0.05331,93974.0,93968.0,0.053313]
[1735741808697,0.05331,93974.0,93954.0,0.3608]
[1735741809099,0.10844814,93970.0,93949.0,0.053323]
[1735741809291,0.10844814,93970.0,93962.0,0.053316]
[1735741809487,0.053315,93964.0,93962.0,0.054316]
[1735741810090,0.0403,93970.0,93963.0,0.053316]
[1735741810291,0.053314,93967.0,93963.0,0.053316]
[1735741810593,0.0212224,93966.0,93964.0,0.053315]
[1735741813402,0.053315,93964.0,93950.0,0.053323]
[1735741813701,0.3608,93957.0,93944.0,0.3608]
[1735741813903,0.0212224,93956.0,93950.0,0.053323]
[1735741814312,0.05332,93955.0,93950.0,0.053323]
[1735741814493,0.0212224,93954.0,93950.0,0.053323]
[1735741814697,0.0212224,93954.0,93951.0,0.053323]
[1735741815598,0.053322,93953.0,93951.0,0.053323]
[1735741815799,0.0212224,93952.0,93951.0,0.053323]
[1735741816000,0.0212224,93952.0,93950.0,0.001]
[1735741816196,0.0212224,93951.0,93950.0,0.054323]
[1735741816392,0.08865844,93952.0,93951.0,0.053322]
[1735741816708,0.11013099,93952.0,93951.0,0.053322]
[1735741817098,0.11013099,93952.0,93950.0,0.001]
[1735741817302,0.053325,93947.0,93942.0,0.053328]
[1735741817607,0.053329,93940.0,93923.0,0.59758414]
[1735741817906,0.46917255,93939.0,93924.0,0.053338]
[1735741818106,0.02147255,93938.0,93935.0,0.053331]
[1735741818702,0.02147255,93938.0,93936.0,0.053331]
[1735741819418,0.02147255,93938.0,93922.0,0.3608]
[1735741819419,0.053334,93932.0,93922.0,0.3608]
[1735741819612,0.02147255,93931.0,93927.0,0.053336]
[1735741819802,0.3608,93929.0,93927.0,0.053336]
[1735741820102,0.3608,93929.0,93910.0,0.10844814]
[1735741820103,0.053338,93925.0,93910.0,0.10844814]
[1735741820308,0.3608,93918.0,93917.0,0.053342]
[1735741820612,0.3608,93929.0,93928.0,0.053336]
[1735741821007,0.38209578,93929.0,93928.0,0.053336]
[1735741822302,0.38809578,93929.0,93928.0,0.053336]
[1735741822703,0.38809578,93929.0,93918.0,0.053341]
[1735741823003,0.3608,93920.0,93907.0,0.3608]
[1735741823310,0.06469578,93919.0,93907.0,0.3608]
[1735741823506,0.02129578,93918.0,93914.0,0.053343]
[1735741825714,0.02132119,93917.0,93907.0,0.054347]
[1735741825910,0.3608,93911.0,93907.0,0.053347]
[1735741826214,0.02132119,93910.0,93907.0,0.053347]
[1735741827111,0.3608,93911.0,93907.0,0.054347]
[1735741827302,0.02150816,93910.0,93907.0,0.001]
[1735741830419,0.053351,93901.0,93900.0,0.1]
[1735741830609,0.053352,93900.0,93889.0,0.3608]
[1735741830813,0.053356,93892.0,93889.0,0.3608]
[1735741831010,0.053357,93890.0,93889.0,0.3608]
[1735741831420,0.053362,93882.0,93881.0,0.042]
[1735741831617,0.3608,93882.0,93865.0,0.06333032]
[1735741831821,0.3608,93866.0,93862.0,0.053373]
[1735741832220,0.3608,93866.0,93860.0,0.0441]
[1735741832518,0.053373,93863.0,93854.0,0.053377]
[1735741832820,0.053379,93853.0,93851.0,0.01020669]
[1735741833025,0.3608,93858.0,93834.0,0.25095427]
[1735741833220,0.02137117,93857.0,93849.0,0.05338]
[1735741833421,0.3608,93858.0,93850.0,0.11014784]
[1735741833629,0.10844814,93864.0,93850.0,0.11014784]
[1735741833925,0.07450199,93863.0,93856.0,0.053376]
[1735741834123,0.10844814,93864.0,93856.0,0.053376]
[1735741834124,0.053374,93862.0,93856.0,0.053376]
[1735741834325,0.10844814,93864.0,93850.0,0.11014784]
[1735741834326,0.053376,93858.0,93850.0,0.11014784]
[1735741834518,0.053373,93863.0,93850.0,0.11014784]
[1735741834724,0.10844814,93864.0,93862.0,0.053373]
[1735741834916,0.3618,93866.0,93862.0,0.053373]
[1735741835111,0.3618,93866.0,93857.0,0.3608]
[1735741835318,0.3618,93866.0,93864.0,0.053372]
[1735741835520,0.415171,93866.0,93864.0,0.053372]
[1735741836116,0.416171,93866.0,93864.0,0.053372]
[1735741836426,0.055371,93866.0,93864.0,0.053372]
[1735741836620,0.002,93866.0,93864.0,0.053372]
[1735741836817,0.007,93866.0,93864.0,0.053372]
[1735741837322,0.002,93866.0,93864.0,0.053372]
[1735741837523,0.006,93866.0,93864.0,0.053372]
[1735741838819,0.006,93866.0,93858.0,0.0421]
[1735741839029,0.053375,93859.0,93856.0,0.053376]
[1735741839521,0.053379,93853.0,93850.0,0.1]
[1735741839711,0.3608,93855.0,93850.0,0.1]
[1735741839910,0.053379,93852.0,93850.0,0.1]
[1735741840511,0.1065513,93851.0,93850.0,0.1]
[1735741841421,0.3608,93855.0,93850.0,0.1]
[1735741841938,0.15993144,93851.0,93850.0,0.1]
[1735741842429,0.15992917,93851.0,93850.0,0.1]
[1735741842622,0.10655017,93851.0,93850.0,0.1]
[1735741842828,0.10655017,93851.0,93850.0,0.15338]
[1735741843329,0.056379,93851.0,93850.0,0.1]
[1735741843530,0.16293144,93851.0,93850.0,0.1]
[1735741843719,0.16193144,93851.0,93850.0,0.1]
[1735741844022,0.16293144,93851.0,93850.0,0.1]
[1735741844421,0.18405523,93851.0,93833.0,0.3608]
[1735741844630,0.3608,93842.0,93833.0,0.3608]
[1735741844927,0.053389,93835.0,93833.0,0.3608]
[1735741845932,0.15995109,93834.0,93827.0,0.053392]
[1735741846328,0.05339,93833.0,93828.0,0.053392]
[1735741846632,0.15996117,93833.0,93828.0,0.053392]
[1735741846934,0.05339,93833.0,93828.0,0.053392]
[1735741847139,0.10657515,93832.0,93822.0,0.0862]
[1735741847318,0.10657515,93832.0,93820.0,0.00159888]
[1735741847517,0.3608,93826.0,93820.0,0.00159888]
[1735741847924,0.10657515,93825.0,93820.0,0.00159888]
[1735741849727,0.10757515,93825.0,93820.0,0.00159888]
[1735741849926,0.10757515,93825.0,93824.0,0.053395]
[1735741850130,0.001,93825.0,93824.0,0.053395]
[1735741850425,0.053383,93845.0,93830.0,0.053391]
[1735741850735,0.02099168,93844.0,93831.0,0.0455]